Cogmind - Beta 15 @@@ ROGUE MODE // 2025.05.09 @ 08:53:32 Player: OJ Result: Destroyed by S-27 Virus with Autogun Performance ------------- Evolutions (4) 2000 Regions Visited (7) 1400 Robots Destroyed (162) 810 Value Destroyed (5036) 5036 Prototype IDs (30) 600 Alien Tech Used (0) 0 Bonus (1444) 1444 TOTAL SCORE: 11290 Bonus ------- High Alert Combat Kills 965 Follower Combat Kills 179 Aligned with FarCom 300 Cogmind --------- Core Integrity 0/850 Matter 51/300 Energy 100/100 System Corruption 4% Temperature Cool (0) Movement Core (50) Location -6/Factory Parts ------- > --- POWER (1) -------- (None) > --- PROPULSION (3) --- (None) > --- UTILITY (7) ------ (None) > --- WEAPON (4) ------- (None) > --- INVENTORY (5) ---- (None) Peak State ------------ > --- POWER ------------ Heavy Ion Engine > --- PROPULSION ------- Armored Treads Armored Huge Wheel > --- UTILITY ---------- Improved Cooling System Huge Storage Unit Matter Filter Weapon Cycler Hardened Medium Armor Plating Hardened Medium Armor Plating > --- WEAPON ----------- Flak Cannon Mini Assault Cannon Improved Grenade Launcher > --- INVENTORY -------- Heavy Ion Engine Light Deuterium Engine Light Nuclear Core Light Nuclear Core Armored Treads Improved Heat Sink Improved Heat Sink Improved Heat Sink Cargo Storage Unit Active Sensor Suite Target Analyzer Matter Filter ECM Suite Improved Light Armor Plating Improved Light Armor Plating Improved Light Armor Plating Heavy Laser Heavy Laser Assault Cannon Assault Cannon Improved Grenade Launcher [Rating: 52] Favorites ----------- Power Ion Engine Engine Ion Engine Power Core Light Nuclear Core Propulsion Light Treads Treads Light Treads Leg Aluminum Leg Wheel Wheel Hover Unit Airjet Utility High-capacity Storage Unit Device Matter Filter Storage High-capacity Storage Unit Processor Visual Processing Unit Hackware Hacking Suite Protection Improved Light Armor Plating Weapon Assault Cannon Energy Gun Medium Laser Energy Cannon Heavy Plasma Cannon Ballistic Gun Heavy Assault Rifle Ballistic Cannon Assault Cannon Launcher Grenade Launcher Slashing Weapon Longsword +1 Build | -11 -10 -10 -10 -9 -8 -7 -6 ------- Run | Yrd Mat Min Exi Min Mat Fac Fac Slots Evolved 8 | . . . . . 4 2 2 Power . | . . . . . . . . Propulsion 1 | . . . . . . 1 . Utility 5 | . . . . . 3 1 1 Weapon 2 | . . . . . 1 . 1 Parts Attached 112 | 9 13 . . 15 38 28 9 Power 14 | 2 1 . . 2 5 3 1 Engine 9 | 2 1 . . 2 3 . 1 Core 5 | . . . . . 2 3 . Reactor . | . . . . . . . . Propulsion 22 | 4 3 . . 6 3 5 1 Treads 12 | . 3 . . 2 3 3 1 Leg 2 | 2 . . . . . . . Wheel 7 | 2 . . . 4 . 1 . Hover 1 | . . . . . . 1 . Flight . | . . . . . . . . Utility 40 | 1 3 . . 2 19 11 4 Device 12 | . . . . . 7 4 1 Storage 8 | 1 2 . . . 1 3 1 Processor 6 | . 1 . . 1 2 1 1 Hackware 1 | . . . . . . . 1 Protection 13 | . . . . 1 9 3 . Artifact . | . . . . . . . . Weapon 36 | 2 6 . . 5 11 9 3 Energy Gun 8 | . 3 . . . 2 2 1 Energy Cannon 2 | . . . . . . 1 1 Ballistic Gun 9 | 2 2 . . 2 2 1 . Ballistic Cannon 11 | . 1 . . . 4 5 1 Launcher 5 | . . . . 2 3 . . Special Weapon . | . . . . . . . . Impact Weapon . | . . . . . . . . Slashing Weapon 1 | . . . . 1 . . . Piercing Weapon . | . . . . . . . . Special Melee Weapon . | . . . . . . . . Unidentified Prototypes 7 | . . . . . 2 4 1 Parts Lost 16 | . 3 . . 3 3 5 2 Power 3 | . 1 . . 1 . . 1 Propulsion 3 | . . . . 1 1 1 . Utility 6 | . . . . . 1 4 1 Weapon 4 | . 2 . . 1 1 . . Highest Loss Streak 2 | . 1 . . 2 2 2 1 To Critical Strikes . | . . . . . . . . Average Backups 16 | 2 10 18 19 18 17 17 3 Power 1 | . . 1 1 1 1 3 . Propulsion 1 | 1 1 2 3 2 1 . . Utility 9 | . 5 10 11 11 10 10 1 Weapon 3 | . 2 3 4 3 4 3 1 Tool/Special . | . . . . . . . . Unused Backups 33 | . 2 . 3 1 12 15 . Power 5 | . . . 1 . 1 3 . Propulsion 2 | . . . . . 2 . . Utility 19 | . 2 . 1 1 7 8 . Weapon 7 | . . . 1 . 2 4 . Tool/Special . | . . . . . . . . Average Slot Usage (%) 92 | . 98 100 100 99 98 83 25 Engine 9 | . 13 14 14 13 7 4 4 Treads 19 | . 25 28 28 22 17 17 . Device 9 | . . . . . 13 17 3 Storage 9 | . 14 14 14 14 9 6 . Processor 6 | . 12 14 14 9 4 . 4 Protection 8 | . . . . 4 16 10 . Ballistic Gun 7 | . 18 14 14 2 8 . . Ballistic Cannon 14 | . 2 14 14 8 17 19 . Launcher 1 | . . . . 12 . . . Peak Build Rating 52 | 6 10 12 12 21 36 52 26 Average Rating 26 | 5 8 11 11 15 33 40 17 On Entrance 12 | . 6 10 12 12 21 35 1 Naked Turns 135 | . . . . . . 64 71 Heaviest Build 184 | 13 51 51 51 57 84 184 151 Greatest Support 63 | 26 40 40 40 40 42 63 28 Greatest Overweight (x) 7 | 1 1 1 1 5 3 5 7 Average Overweight (x) 1 | . . 1 1 1 1 1 1 Largest Inventory Capacity 30 | 8 20 20 20 20 20 30 30 Average Capacity 19 | 7 12 20 20 20 20 23 6 Most Carried 26 | 4 15 20 20 20 20 26 5 Average Carried 17 | 2 10 18 19 18 19 20 4 Final Capacity 20 | 8 20 20 20 20 20 5 5 Final Carried 20 | 4 14 20 19 20 20 5 . Class Distribution -------------------- 43% | Tank 40% | Mutant 9% | Skirmisher 5% | Hauler-Skirmisher Dominant Class ---------------- Mutant | -10/Materials Mutant | -10/Mines Mutant | -10/Exiles Mutant | -9/Mines Tank | -8/Materials Tank | -7/Factory Mutant | -6/Factory Resources | -11 -10 -10 -10 -9 -8 -7 -6 ----------- Run | Yrd Mat Min Exi Min Mat Fac Fac Matter Collected 4395 | 204 677 103 . 441 1624 1346 . Remotely . | . . . . . . . . Salvage Created 4495 | . 768 114 . 320 1618 1675 . Parts 279 | . 47 15 . 14 110 93 . Haulers Intercepted 10 | . 2 . . . 6 2 . Recyclers Shooed 5 | . 1 . . . 1 3 . Parts Field Recycled . | . . . . . . . . Retrieved Matter . | . . . . . . . . Parts Self-Destructed . | . . . . . . . . Prevented . | . . . . . . . . Kills | -11 -10 -10 -10 -9 -8 -7 -6 ------- Run | Yrd Mat Min Exi Min Mat Fac Fac Combat Hostiles Destroyed 121 | . 14 9 . 18 37 43 . Melee 3 | . . . . 3 . . . Guns 30 | . 14 7 . 1 5 3 . Cannons 60 | . . 2 . 3 29 26 . AOE 28 | . . . . 11 3 14 . Classes Destroyed 16 | . 6 . . 4 2 4 . Worker 11 | . 1 . . . 3 7 . Builder 11 | . . . . 1 3 7 . Tunneler 2 | . . . . 1 . 1 . Hauler 10 | . 2 . . . 6 2 . Recycler 4 | . 1 . . . 2 1 . Mechanic 2 | . . . . . . 2 . Operator 1 | . . . . . 1 . . Watcher 10 | . 3 . . . 4 3 . Swarmer 21 | . 3 9 . . 9 . . Grunt 68 | . 11 . . 7 20 30 . Brawler 4 | . . . . 1 1 2 . Duelist 2 | . . . . . . 2 . Sentry 9 | . . . . . 7 2 . Programmer 6 | . . . . . . 6 . Heavy 1 | . . . . . . 1 . Assembled 10 | . . . . 10 . . . Best Kill Streak 14 | . 6 3 . 5 7 14 . Combat Bots Only 8 | . 6 3 . 5 5 8 . Max Kills in Single Turn 5 | . 1 2 . 3 2 5 . Gunslinging . | . . . . . . . . Exploded 4 | . . . . 2 1 4 . Melee 1 | . . . . 1 . . . Uniques/NPCs Destroyed . | . . . . . . . . Combat | -11 -10 -10 -10 -9 -8 -7 -6 -------- Run | Yrd Mat Min Exi Min Mat Fac Fac Hostile Shots Fired 801 | . 83 39 . 57 155 301 166 Missed 268 | . 23 12 . 20 35 111 67 Hits 533 | . 60 27 . 37 120 190 99 Melee 18 | . . . . 11 . 5 2 Projectile 515 | . 60 27 . 26 120 185 97 Critical Strikes 9 | . . . . . 3 6 . Part Disruptions 1 | . . . . . . 1 . Damage Taken 7191 | . 763 214 . 774 1465 2765 1210 Core 1783 | . 86 29 . 88 179 551 850 Absorbed by Shields 270 | . . . . . 244 26 . Redirected to Shielding 24 | . . . . 3 . 21 . Ignored by Resistances 24 | . . . . . . . 24 Regen/Repaired (Parts) 530 | . . . . . . 530 . Core Remaining (%) 51 | 100 . . . 18 67 21 . Volleys Fired 368 | . 98 14 . 32 102 116 6 Largest 3 | . 2 2 . 2 3 3 2 Hottest 111 | . 73 53 . 46 111 111 101 Shots Fired 848 | . 196 28 . 37 286 294 7 Gun 316 | . 195 14 . 7 85 14 1 Cannon 491 | . 1 14 . 12 194 264 6 Launcher 41 | . . . . 18 7 16 . Special . | . . . . . . . . Kinetic 719 | . 136 28 . 19 271 264 1 Thermal 78 | . 50 . . . 8 14 6 Explosive 41 | . . . . 18 7 16 . Electromagnetic 10 | . 10 . . . . . . Robot Hit Streak 12 | . 10 3 . 5 12 7 3 Robot Miss Streak 22 | . 4 4 . 2 8 22 1 Penetration Max . | . . . . . . . . Secondary Targets 1 | . 1 . . . . . . Max Gunslinging Chain 1 | . 1 . . . . . . Shots Hit Robots 440 | . 85 11 . 24 164 152 4 Core Hits 372 | . 39 9 . 29 106 189 . Critical Kills . | . . . . . . . . Critical Parts Destroyed 1 | . . . . . 1 . . Critical Strikes 14 | . 3 1 . . 5 5 . Burn 4 | . 3 . . . . 1 . Destroy 1 | . . . . . 1 . . Blast 9 | . . 1 . . 4 4 . Melee Attacks 7 | . . . . 7 . . . Impact . | . . . . . . . . Slashing 7 | . . . . 7 . . . Piercing . | . . . . . . . . Sneak Attacks . | . . . . . . . . Combat Hostiles . | . . . . . . . . Follow-up Attacks . | . . . . . . . . Damage Inflicted 12490 | . 1075 224 . 1203 3985 5894 109 Guns 2326 | . 1031 174 . 89 813 219 . Cannons 6167 | . 20 50 . 148 2702 3151 96 Explosions 3757 | . . . . 793 467 2497 . Melee 173 | . . . . 173 . . . Ramming 67 | . 24 . . . 3 27 13 Kinetic 7883 | . 810 224 . 237 3446 3166 . Thermal 1185 | . 159 . . . 69 861 96 Explosive 2986 | . . . . 793 467 1726 . Electromagnetic 196 | . 82 . . . . 114 . Impact . | . . . . . . . . Slashing 173 | . . . . 173 . . . Piercing . | . . . . . . . . Highest Corruption 11 | . . . . 5 . 11 4 Average Corruption 4 | . . . . 4 . 4 3 Corruption Purged . | . . . . . . . . Corruption Blocked . | . . . . . . . . Effects 71 | . . . . 13 . 54 4 Message Errors 16 | . . . . 3 . 12 1 Matter Fused 15 | . . . . 1 . 12 2 Heat Flow Errors 11 | . . . . 1 . 10 . Energy Discharges 9 | . . . . 1 . 7 1 Parts Rejected 1 | . . . . 1 . . . Data Loss (minor) 7 | . . . . 4 . 3 . Data Loss (major) 5 | . . . . . . 5 . Misfires 4 | . . . . 2 . 2 . Alerts 1 | . . . . . . 1 . Weapon Failures 2 | . . . . . . 2 . Overload Shots . | . . . . . . . . Overflow Damage 186 | . . . . 33 46 107 . Projectiles 44 | . . . . . 25 19 . Explosions 111 | . . . . 2 21 88 . Melee 31 | . . . . 31 . . . Knockbacks 68 | . . 2 . 2 20 44 . Impact 1 | . . . . . . 1 . Kinetic 64 | . . 1 . 2 18 43 . Secondary 3 | . . 1 . . 2 . . Self-Inflicted Damage 258 | . . . . 81 13 158 6 Shots 8 | . . . . 3 1 4 . Rammed 14 | . 4 . . . 2 5 3 Targets Rammed 14 | . 4 . . . 2 5 3 Kicked . | . . . . . . . . Crushed . | . . . . . . . . Highest Temperature 484 | . 278 . . 239 484 251 150 Average Temperature 91 | . 80 . . 90 117 52 71 Received Heat Transfer 2322 | . 288 . . 30 705 888 411 Effects 6 | . 1 . . . 5 . . Energy Bleed 3 | . 1 . . . 2 . . Interference 1 | . . . . . 1 . . Matter Decay 2 | . . . . . 2 . . Siege Activations . | . . . . . . . . Martial Activations . | . . . . . . . . Shielding Activations . | . . . . . . . . Robots Disrupted . | . . . . . . . . Combat Hostiles . | . . . . . . . . Robots Corrupted . | . . . . . . . . Combat Hostiles . | . . . . . . . . Parts Fried . | . . . . . . . . Impact Corruptions . | . . . . . . . . Robots Melted . | . . . . . . . . Combat Hostiles . | . . . . . . . . Parts Melted . | . . . . . . . . Heat Transferred 1974 | . 703 . . . 90 1031 150 Parts Sabotaged . | . . . . . . . . Parts Stolen . | . . . . . . . . Parts Stripped . | . . . . . . . . Power Chain Reactions . | . . . . . . . . Alert | -11 -10 -10 -10 -9 -8 -7 -6 ------- Run | Yrd Mat Min Exi Min Mat Fac Fac Maximum Alert Level 4 | . 1 . . . 2 4 2 Low Security (%) 52 | 100 99 100 . 100 44 17 . Level 1 16 | . . . . . 26 20 . Level 2 16 | . . . . . 28 . 100 Level 3 5 | . . . . . . 22 . Level 4 9 | . . . . . . 38 . Level 5 . | . . . . . . . . High Security . | . . . . . . . . Max Security . | . . . . . . . . Peak Influence 1564 | . 200 97 . 138 691 1564 681 Initial 681 | . . 27 . . 27 310 681 Average 355 | . 85 19 . 53 261 841 550 Influence Increases 4309 | . 450 210 . 305 1190 2032 122 Destroy 0b10 Robot/C 2320 | . 280 180 . 160 740 960 . Destroy 0b10 Robot/NC 260 | . 35 . . 10 95 120 . Destroy Leader 532 | . 70 30 . 30 170 232 . Allied During Kill 20 | . . . . . . 20 . Successful Hack 42 | . 18 . . . 15 9 . Disable Machine 420 | . . . . . 60 360 . Destroy Structure 325 | . 2 . . 105 80 136 2 Lose Combat Pursuer 390 | . 45 . . . 30 195 120 Influence Decreases 3796 | . 380 280 . 234 579 1324 999 Entered New Map 1168 | . . 43 . . 44 372 709 Time Decay 2258 | . 350 237 . 204 505 692 270 Lost Part 160 | . 30 . . 30 30 50 20 Lost Ally 60 | . . . . . . 60 . Purge Threat 150 | . . . . . . 150 . Squads Dispatched 38 | . 3 . . 1 5 22 7 Investigation 7 | . 2 . . . 2 2 1 Extermination 6 | . . . . . . 5 1 Reinforcement 11 | . 1 . . 1 3 5 1 Assault 10 | . . . . . . 7 3 Garrison 4 | . . . . . . 3 1 Intercept . | . . . . . . . . Searches Triggered . | . . . . . . . . Construction Impeded 3 | . . . . 1 . 2 . Haulers Reinforced . | . . . . . . . . Active Scanning Responses . | . . . . . . . . Cargo Convoy Interrupts 1 | . . . . . . 1 . Stealth | -11 -10 -10 -10 -9 -8 -7 -6 --------- Run | Yrd Mat Min Exi Min Mat Fac Fac Distress Signals 8 | . 2 . . . 1 5 . Communications Jammed . | . . . . . . . . Distress Signals . | . . . . . . . . Times Spotted 205 | . 23 12 . 21 49 78 22 Peak Tracking Total 10 | . 5 3 . 5 5 10 9 Tactical Retreats 17 | . 2 . . 3 2 7 3 Traps | -11 -10 -10 -10 -9 -8 -7 -6 ------- Run | Yrd Mat Min Exi Min Mat Fac Fac Traps Triggered 6 | . 1 . . . 1 3 1 Indirectly . | . . . . . . . . Trap Hack Attempts . | . . . . . . . . Triggered . | . . . . . . . . Disarmed . | . . . . . . . . Reprogrammed . | . . . . . . . . Reused . | . . . . . . . . Traps Extracted . | . . . . . . . . Installed 1 | . . . . . 1 . . Triggered . | . . . . . . . . Most Traps Carried 3 | . . . . 3 3 . . Machines | -11 -10 -10 -10 -9 -8 -7 -6 ---------- Run | Yrd Mat Min Exi Min Mat Fac Fac Machines Disabled 28 | . . . . . 4 24 . Max in Single Turn 12 | . . . . . 1 12 . Garrison Access 1 | . . . . . . . 1 Machines Repaired . | . . . . . . . . Machines Dismantled . | . . . . . . . . Machines Sabotaged . | . . . . . . . . Overloaded Fab Kills . | . . . . . . . . Hacking | -11 -10 -10 -10 -9 -8 -7 -6 --------- Run | Yrd Mat Min Exi Min Mat Fac Fac Machines Accessed 28 | . 6 . 4 . 9 7 2 Terminals 15 | . 5 . . . 6 3 1 Fabricators 1 | . . . . . . 1 . Repair Stations 3 | . 1 . . . 1 1 . Recycling Units 1 | . . . . . . 1 . Scanalyzers 3 | . . . . . 2 1 . Garrison Access 1 | . . . . . . . 1 Total Hacks 76 | . 21 . 6 . 27 17 5 Successful 30 | . 4 . 6 . 10 9 1 Failed 46 | . 17 . . . 17 8 4 Catastrophic 9 | . 2 . . . 4 2 1 Database Lockouts . | . . . . . . . . Manual 26 | . 11 . 1 . 12 2 . Terminals 46 | . 18 . . . 19 7 2 Fabricators 1 | . . . . . . 1 . Repair Stations 11 | . 3 . . . 2 6 . Recycling Units 2 | . . . . . . 2 . Scanalyzers 7 | . . . . . 6 1 . Garrison Access 3 | . . . . . . . 3 Terminal Hacks 17 | . 4 . 6 . 4 2 1 Record 5 | . . . 5 . . . . Open DSF 1 | . . . . . . 1 . Branch Access Points 1 | . 1 . . . . . . Emergency Access Points 1 | . . . . . 1 . . Terminal Index 1 | . . . . . 1 . . Scanalyzer Index 1 | . . . . . 1 . . Alert Level 1 | . 1 . . . . . . Unreport Threat 1 | . . . . . . 1 . Recall Assault 1 | . . . . . . . 1 Zone Layout 3 | . 2 . . . 1 . . Proto ID Catalog 1 | . . . 1 . . . . Fabricator Hacks 1 | . . . . . . 1 . Build 1 | . . . . . . 1 . Repair Station Hacks 4 | . . . . . . 4 . Scan Component 2 | . . . . . . 2 . Repair 2 | . . . . . . 2 . Recycling Unit Hacks 2 | . . . . . . 2 . Retrieve Matter 2 | . . . . . . 2 . Scanalyzer 6 | . . . . . 6 . . Insert Component 3 | . . . . . 3 . . Analyze 3 | . . . . . 3 . . Garrison Access Hacks . | . . . . . . . . Unauthorized Hacks . | . . . . . . . . Terminals . | . . . . . . . . Fabricators . | . . . . . . . . Repair Stations . | . . . . . . . . Recycling Units . | . . . . . . . . Scanalyzers . | . . . . . . . . Garrison Access . | . . . . . . . . Data Cores Recovered . | . . . . . . . . Used . | . . . . . . . . Hacking Detections 21 | . 6 . . . 9 5 1 Full Trace Events 8 | . 2 . . . 3 2 1 Feedback Events . | . . . . . . . . Feedback Blocked . | . . . . . . . . Robot Schematics Acquired . | . . . . . . . . Robots Built 3 | . . . . . . 3 . Authchips . | . . . . . . . . Time 49 | . . . . . . 49 . Total Robot Build Rating 6 | . . . . . . 6 . Part Schematics Acquired 3 | . . . . . 3 . . Parts Built . | . . . . . . . . Authchips . | . . . . . . . . Time . | . . . . . . . . Total Part Build Rating . | . . . . . . . . Parts Repaired 2 | . . . . . . 2 . Time 76 | . . . . . . 76 . Parts Recycled . | . . . . . . . . Recycled Matter . | . . . . . . . . Retrieved Matter . | . . . . . . . . Retrieved Components . | . . . . . . . . Parts Scanalyzed 3 | . . . . . 3 . . Part Schematics Acquired 3 | . . . . . 3 . . Parts Damaged . | . . . . . . . . Bothacking | -11 -10 -10 -10 -9 -8 -7 -6 ------------ Run | Yrd Mat Min Exi Min Mat Fac Fac Used RIF Installer . | . . . . . . . . Robots Hacked . | . . . . . . . . Non-combat . | . . . . . . . . Combat . | . . . . . . . . Robot Hacks Applied . | . . . . . . . . Relay Couplers Released 2 | . . . . . . . 2 Machine Destruction 2 | . . . . . . . 2 Fabnet Peak Effective % . | . . . . . . . . Robots Rewired . | . . . . . . . . Allies Hacked . | . . . . . . . . Hacks Repelled . | . . . . . . . . Allies | -11 -10 -10 -10 -9 -8 -7 -6 -------- Run | Yrd Mat Min Exi Min Mat Fac Fac Total Allies 4 | . . . . 1 . 3 . Largest Group 3 | . . . . 1 . 3 . Highest-Rated Group 31 | . . . . 31 . 30 . Highest-Rated Ally 31 | . . . . 31 . 10 . Total Orders . | . . . . . . . . Ally Attacks 16 | . . . . . . 16 . Total Damage 320 | . . . . . . 320 . Kills 6 | . . . . . . 6 . Allies Corrupted . | . . . . . . . . Allies Melted . | . . . . . . . . Intel | -11 -10 -10 -10 -9 -8 -7 -6 ------- Run | Yrd Mat Min Exi Min Mat Fac Fac Active Infowar (turns) 4020 | . 1127 1139 1136 618 . . . Optics 4020 | . 1127 1139 1136 618 . . . Robot Analysis Total . | . . . . . . . . Derelict Logs Recovered 3 | . . 2 . 1 . . . Drone Launches . | . . . . . . . . Drone Recoveries . | . . . . . . . . Exploration | -11 -10 -10 -10 -9 -8 -7 -6 ------------- Run | Yrd Mat Min Exi Min Mat Fac Fac Turns Passed 12807 | 83 1211 1139 1136 989 4835 2821 593 Spaces Moved 4641 | 58 529 454 472 445 1536 903 244 Core 370 | 4 . . . . . 125 241 Treads 3727 | . 483 454 472 267 1484 564 3 Legs 88 | 42 46 . . . . . . Wheels 386 | 12 . . . 178 52 144 . Hover 70 | . . . . . . 70 . Flight . | . . . . . . . . Fastest Speed 50 | 50 120 240 240 110 125 50 50 Average Speed 221 | 114 165 240 240 188 243 242 141 Slowest Speed 560 | 190 240 240 240 240 410 410 560 Overloaded Moves . | . . . . . . . . Propulsion Burnouts . | . . . . . . . . Robots Hopped . | . . . . . . . . Potential Cave-ins . | . . . . . . . . Cave-ins Triggered . | . . . . . . . . Exploration Rate (%) 59 | 4 76 96 93 91 85 27 7 Regions Visited 7 Branch Regions 3 Pre-discovered Areas . | . . . . . . . . Known Exits Taken 2 | . 1 . . . 1 . . Unknown Exits Taken 5 | 1 . 1 1 1 . 1 . Scrap Searched 1 | . . 1 . . . . . Spaces Dug 2 | . . . . . 2 . . Terrain Destroyed 363 | . . . . 139 71 151 2 Melee . | . . . . . . . . Projectile 48 | . . . . . 38 8 2 AOE 315 | . . . . 139 33 143 . Terrain Rammed . | . . . . . . . . Walls Destroyed . | . . . . . . . . Machines Disabled . | . . . . . . . . Actions | -11 -10 -10 -10 -9 -8 -7 -6 --------- Run | Yrd Mat Min Exi Min Mat Fac Fac Total 6505 | 70 677 477 478 551 2429 1340 483 Wait 1127 | . 5 2 . 36 641 228 215 Move 4634 | 57 528 453 471 444 1535 902 244 Hop . | . . . . . . . . Pick Up 97 | 4 18 7 3 7 37 21 . Fast Attach 45 | 5 4 . . 1 16 13 6 Attach 51 | 1 4 . . 8 13 20 5 Detach 17 | . . . . . 5 11 1 Swap 46 | 3 5 . . 9 21 8 . Drop 95 | . 11 1 4 7 56 14 2 Fire 368 | . 98 14 . 32 102 116 6 Melee 7 | . . . . 7 . . . Ram 4 | . . . . . . 1 3 Kick . | . . . . . . . . Crush 10 | . 4 . . . 2 4 . Escape Stasis 2 | . . . . . . 2 . Rewire 1 | . . . . . . . 1 Trap 1 | . . . . . 1 . . Miscellaneous . | . . . . . . . . Route ------- -11/Scrapyard -10/Materials (discovered 4 exits: [*Mat x2] / *Min x2) -10/Mines (discovered 2 exits: [*Mat] / *Exi) -10/Exiles -9/Mines (discovered 2 exits: *Mat x2) -8/Materials (discovered 3 exits: *Fac x3) -7/Factory -6/Factory History --------- Turn | Location | Event 29 | -11/Scrapyard | Discovered new exit (range 15) 84 | -11/Scrapyard | Entered Materials 92 | -10/Materials | Discovered new exit (range 16) 233 | -10/Materials | Discovered new exit (range 17) 314 | -10/Materials | Build established: Mutant 316 | -10/Materials | Identified exit to Mines 613 | -10/Materials | Discovered new exit (range 8) 1138 | -10/Materials | Discovered new exit (range 18) 1295 | -10/Materials | Entered Mines 1355 | -10/Mines | Joined a pair of Derelicts in attacking an 0b10 outpost 1649 | -10/Mines | Learned Materials garrison access intel 2091 | -10/Mines | Discovered new exit (range 8) 2165 | -10/Mines | Deemed a non-threat by the Exiles lab entrance 2168 | -10/Mines | Discovered new exit (range 5) 2434 | -10/Mines | Entered Exiles 2492 | -10/Exiles | Met 8R-AWN 2528 | -10/Exiles | Met EX-HEX 2679 | -10/Exiles | Met EX-BIN 2715 | -10/Exiles | Aligned with FarCom system 2718 | -10/Exiles | Given EX-Vault access code 2840 | -10/Exiles | Opened EX-Vault 2860 | -10/Exiles | Found Longsword +1 2909 | -10/Exiles | Warned to stay clear of 0b10 Research branches 2974 | -10/Exiles | Met EX-DEC 3061 | -10/Exiles | Visited The Gauntlet 3531 | -10/Exiles | Discovered new exit (range 17) 3570 | -10/Exiles | Left Exiles lab with Longsword +1 3570 | -10/Exiles | Entered Mines 3597 | -9/Mines | Received a Rocket Launcher from a helpful Derelict 4046 | -9/Mines | Assembled infested the area 4070 | -9/Mines | Core integrity fell below 50% 4271 | -9/Mines | Discovered new exit (range 16) 4319 | -9/Mines | Learned location of 2 exits from Materials 4322 | -9/Mines | Core integrity fell below 20% 4385 | -9/Mines | Discovered new exit (range 8) 4403 | -9/Mines | Received a Mining Laser from a helpful Derelict 4525 | -9/Mines | Found a hidden stash of uninstalled traps 4559 | -9/Mines | Entered Materials 4559 | -8/Materials | Evolved 4 slots: Utility x3, Weapon x1 4560 | -8/Materials | Identified exit to Factory 4561 | -8/Materials | Loaded intel: 1 garrison access location 4914 | -8/Materials | Build established: Tank 7409 | -8/Materials | Discovered exit to Factory (range 13) 9133 | -8/Materials | Build established: Skirmisher 9394 | -8/Materials | Entered Factory 9394 | -7/Factory | Evolved 2 slots: Propulsion x1, Utility x1 9682 | -7/Factory | Build established: Hauler-Skirmisher 9895 | -7/Factory | Found Prototype Device 10352 | -7/Factory | Build established: Skirmisher 10405 | -7/Factory | Garrison activated, responded to threat 10493 | -7/Factory | Destroyed 7 combat bots 10594 | -7/Factory | First assault squad dispatched 10601 | -7/Factory | Fabricated B-36 Bruiser? 10616 | -7/Factory | Cargo convoy interrupted 10717 | -7/Factory | Lost 3 allies 10847 | -7/Factory | Build established: Tank 11148 | -7/Factory | Destroyed 8 combat bots 11377 | -7/Factory | Repaired Arm. Treads 11416 | -7/Factory | Repaired Arm. Treads 11807 | -7/Factory | System corruption reached 10% 11807 | -7/Factory | Released all parts (11) 12189 | -7/Factory | Released all parts (8) 12191 | -7/Factory | Core integrity fell below 50% 12207 | -7/Factory | Discovered new exit (range 10) 12215 | -7/Factory | Entered another Factory area 12215 | -6/Factory | Evolved 2 slots: Utility x1, Weapon x1 12494 | -6/Factory | Build established: Mutant 12565 | -6/Factory | First assault squad dispatched 12742 | -6/Factory | Released all parts (6) 12750 | -6/Factory | Core integrity fell below 50% 12773 | -6/Factory | Core integrity fell below 20% 12808 | -6/Factory | Destroyed by S-27 Virus with Autogun Last Messages --------------- 12740_ ALERT: Garrison Access compromised, dispatching multiple assault carriers. 12740_ Garrison Access disabled. 12740_ Relay Coupler [Grunt] tumbles out of Garrison Access. 12740_ Sml. Matter Pod destroyed. 12742_ Released Hacking Suite. 12742_ Released Adv. Targeting Computer. 12742_ Released Focal Shield. 12742_ Released Med. Treads. 12742_ Released Prc. Beam Rifle. 12742_ Released Gauss Cannon. 12745_ Slammed into G-67 Veteran. 12749_ ALERT: Cargo convoy en route, clear transfer corridor. 12751_ System corrupted: Energy discharge (-29). 12766_ Slammed into G-67 Veteran. 12776_ M-28 Smith repairs G-50 Soldier. 12781_ System corrupted: Matter fused (-9). 12797_ Slammed into A-15 Conveyor. 12798_ L1%9JIMS%V9DFDDY8PZRFXBJ7FLU